[Event "44th Chess Olympiad Open 2022"]
[Site "Chennai"]
[Date "2022.07.30"]
[Round "2.58"]
[White "Jallow, Jalamang"]
[Black "Rakotomaharavo, Dylan"]
[Result "0-1"]
[ECO "D02"]
[WhiteElo "1572"]
[BlackElo "1948"]
[Annotator "TA"]
[PlyCount "130"]
[EventDate "2022.07.29"]
[EventType "team-tourn"]
[EventCountry "IND"]
[SourceTitle "playchess.com"]
[Source "ChessBase"]
[SourceQuality "1"]
[WhiteTeam "Gambia"]
[BlackTeam "Madagascar"]
[WhiteTeamCountry "GAM"]
[BlackTeamCountry "MAD"]
[TimeControl "40/5400+30:1800+30"]

{[%evp 9,130,-16,-6,-21,-9,-16,0,-40,-50,-121,-116,-128,-108,-113,-66,-79,-86,-106,-75,-91,-72,-82,22,6,0,0,0,0,0,-104,23,-120,-107,-110,-110,-117,-97,-131,-129,-133,-116,-143,-74,-146,-99,-137,-81,-166,-169,-171,-173,-189,-187,-188,-132,-122,-120,-111,-118,-127,-115,-137,-113,-97,-120,-112,-104,-213,0,0,0,0,0,0,0,0,0,0,7,-83,-72,-64,-72,-83,-93,-197,-211,-284,-235,-558,-397,-396,-253,-925,-870,-1319,-1269,-12837,-12838,-12834,-12835,-5920,-2710,-2139,-2245,-29987,-29988,-29990,-12840,-12841,-12842,-12842,-12843,-12843,-956,-12844,-12844,-12845,-12845,-29988,-12845,-12845,-12845]} 1. d4 {[%emt 0:00:07]} d5 {[%emt 0:00:15]} 2. Nf3 {[%emt 0:00:54]} Nf6 {[%emt 0:00:29]} 3. g3 {[%emt 0:00:54]} e6 {[%emt 0:00:28]} 4. Bg2 {[%emt 0:00:30]} c5 {[%emt 0:00:07]} 5. e3 {[%emt 0:03:13]} Nc6 {[%emt 0:00:01]} 6. c3 {[%emt 0:01:40] D02: 1 d4 d5 2 Nf3 sidelines, including 2...Nf6 3 g3 and 2...Nf6 3 Bf4.} Bd6 {[%emt 0:00:22]} 7. Nbd2 {[%emt 0:03:50]} O-O {[%emt 0:00:12] [#]} 8. Nb3 $146 {[%emt 0:01:02] The position is equal.} ({Predecessor:} 8. O-O b6 9. Re1 Ne4 10. Nxe4 dxe4 11. Nd2 f5 12. b3 Ba6 13. Bb2 Rc8 14. dxc5 Bxc5 {1-0 (34) Belenkaya,D (2254)-Silva,M (1912) Chess.com INT 2022}) 8... b6 {[%emt 0:00:09]} 9. Bd2 {[%emt 0:00:58]} (9. O-O $15) 9... Ba6 {[%emt 0:00:07]} 10. Nc1 {[%emt 0:01:21]} Re8 {[%emt 0:00:59]} 11. Ne2 {[%emt 0:00:25]} e5 {[%emt 0:00:23]} (11... Rc8 $17 12. O-O h6) 12. dxe5 $15 {[%emt 0:03:03]} Bxe5 {[%emt 0:00:06]} 13. O-O {[%emt 0:01:05]} Rc8 {[%emt 0:00:10]} (13... Ne4 {is interesting.} 14. Re1 Rc8 15. Nf4 g5) 14. Re1 {[%emt 0:00:22]} Bb8 {[%emt 0:00:24]} (14... Ne4 {seems wilder.} 15. Bc1 g5 16. Qa4 Bd3) 15. Qc2 {[%emt 0:02:27]} d4 {[%emt 0:04:21]} (15... Ne4 $17 16. Qa4 Bb7) 16. Qa4 {[%emt 0:01:19]} Bxe2 {[%emt 0:00:46]} 17. Rxe2 {[%emt 0:00:40][%cal Rf3d4]} d3 {[%emt 0:00:33]} 18. Ree1 {[%emt 0:02:18]} Ne4 $36 {[%emt 0:02:10][%mdl 2048] Black has good play.} 19. a3 {[%emt 0:03:46]} (19. Red1 $11) 19... c4 {[%emt 0:02:34]} (19... Qf6 $17 {...g5 is the strong threat.} 20. Red1 Na5) 20. Qd1 {[%emt 0:03:04]} (20. Qxc4 $11 {was the only way to keep the balance.} Na5 21. Qa2) 20... Qf6 {[%emt 0:00:39] Strongly threatening ...Na5.} 21. Rf1 {[%emt 0:00:52]} Na5 {[%emt 0:00:25] Pair of Knights!} 22. Nd4 {[%emt 0:00:31] Against Nb3} Nc5 {[%emt 0:00:09]} 23. Rb1 {[%emt 0:02:03]} Ncb3 {[%emt 0:00:23]} 24. Kh1 {[%emt 0:03:35]} Be5 {[%emt 0:00:18]} 25. Kg1 {[%emt 0:01:00]} g6 {[%emt 0:00:20]} (25... Rcd8 $142 26. Re1 Bc7) 26. Kh1 {[%emt 0:02:54]} (26. Nxb3 $142 Nxb3 27. Bd5) 26... Rc5 {[%emt 0:00:25]} ({Black should play} 26... Rcd8 27. Nxb3 Nxb3) 27. Nf3 {[%emt 0:01:06]} Qd6 {[%emt 0:01:06]} (27... Bd6 $142 28. Nd4 Rc7) 28. Nd4 {[%emt 0:00:26]} (28. e4 $17 {was called for.}) 28... f5 $19 {[%emt 0:00:21]} ({Stronger than} 28... Bxd4 29. exd4 Rcc8 30. Be3 $11) 29. Kg1 {[%emt 0:01:11]} a6 {[%emt 0:00:07]} 30. Kh1 {[%emt 0:00:57]} Rc7 {[%emt 0:01:11]} 31. Kg1 {[%emt 0:00:14]} Bxd4 {[%emt 0:00:45]} (31... b5 $19 32. h4 Nc5) 32. cxd4 {[%emt 0:00:23]} Nxd2 {[%emt 0:00:06] 0x0.0020aec829a2dp-1022s more active pieces. The white rooks are badly placed.} 33. Qxd2 {[%emt 0:00:24]} Nb3 {[%emt 0:00:07]} 34. Qc3 {[%emt 0:00:31]} b5 {[%emt 0:00:08]} 35. Rbd1 {[%emt 0:03:48][%cal Od1d3]} Kg7 {[%emt 0:03:25]} 36. Rxd3 {[%emt 0:00:29]} cxd3 {[%emt 0:00:22]} 37. Qxb3 {[%emt 0:00:33]} d2 {[%emt 0:00:26]} 38. Qd1 {[%emt 0:01:31] [#]} (38. Bf3 $17) 38... Rc1 $2 {[%emt 0:00:16]} ({Better is} 38... Rec8 $1 $19 {Hoping for ...Rc2.} 39. Qxd2 Rc2) 39. Qxd2 $11 {[%emt 0:00:29]} Rxf1+ {[%emt 0:00:03]} 40. Bxf1 {[%emt 0:01:01][%mdl 4096] Endgame KQR-KQB} Rc8 {[%emt 0:00:06]} 41. h4 {[%emt 0:30:55]} Qc6 {[%emt 0:31:24]} 42. d5 {[%emt 0:01:04]} Qd6 {[%emt 0:00:16]} 43. Bg2 {[%emt 0:01:34]} Rc4 {[%emt 0:00:27]} 44. Kh2 {[%emt 0:00:30]} (44. Bf3 $11) 44... Rxh4+ $1 $17 {[%emt 0:00:12]} 45. Kg1 {[%emt 0:00:12]} Rc4 {[%emt 0:00:07] Against Qc3+} 46. Bf1 {[%emt 0:02:20] Black continues to play with concentration.} Rc7 {[%emt 0:00:36]} 47. b4 {[%emt 0:00:36]} (47. b3 $17) 47... Qe5 $19 {[%emt 0:00:14]} 48. Kh2 {[%emt 0:02:06]} h5 {[%emt 0:00:12][%cal Bh7h5,Bh5h4][%mdl 32] And now ...h4 would win.} 49. f4 $2 {[%emt 0:02:50]} (49. Kg2 {is tougher.}) 49... Qf6 {[%emt 0:00:11]} 50. Bg2 {[%emt 0:00:47]} h4 {[%emt 0:00:08]} 51. g4 $2 {[%emt 0:02:23]} (51. gxh4 Qxh4+ 52. Kg1) 51... fxg4 {[%emt 0:00:14]} 52. e4 {[%emt 0:00:57]} Rf7 {[%emt 0:01:13]} 53. e5 {[%emt 0:00:32]} Qxf4+ {[%emt 0:00:06]} 54. Qxf4 {[%emt 0:01:16]} Rxf4 {[%emt 0:00:08] KR-KB} 55. d6 {[%emt 0:00:18]} Rd4 {[%emt 0:00:12]} (55... Rf2 $142 56. Kg1 Rd2) 56. Bb7 {[%emt 0:01:45]} Rd2+ {[%emt 0:00:56]} 57. Kg1 {[%emt 0:02:06]} h3 {[%emt 0:00:00]} 58. Bc8 {[%emt 0:00:20]} Kf8 {[%emt 0:00:13]} (58... h2+ $142 59. Kh1 g3 60. Bg4 Ra2 61. Bd1 Ra1 62. Kg2 Rxd1 63. Kxg3 h1=Q 64. Kf2 Qf1+ 65. Kg3 Rd3+ 66. Kg4 Qh3+ 67. Kg5 Qg3#) 59. Kh1 {[%emt 0:01:27]} g3 {[%emt 0:00:08][%cal Rd2d1] [#]} 60. Bg4 {[%emt 0:03:39] Inhibits Rd1+.} Rc2 {[%emt 0:00:38]} 61. Bxh3 {[%emt 0:01:12]} Rh2+ {[%emt 0:00:08]} 62. Kg1 {[%emt 0:00:30]} Rxh3 {[%emt 0:00:08]} 63. Kg2 {[%emt 0:00:20]} Rh5 {[%emt 0:00:04] ( -> ...Rg5)} 64. e6 {[%emt 0:01:56]} Rd5 {[%emt 0:00:52]} (64... Rg5 $142 65. a4 bxa4 66. e7+ Ke8 67. d7+ Kxd7 68. e8=R Kxe8 69. b5 axb5 70. Kf3 g2 71. Kf4 g1=Q 72. Ke4 Qg3 73. Kd4 a3 74. Ke4 Re5+ 75. Kd4 Qe3#) 65. d7 {[%emt 0:01:30]} Ke7 {[%emt 0:00:07] Weighted Error Value: White=0.79/Black=0.42} 0-1

[Event "44th Chess Olympiad Open 2022"]
[Site "Chennai"]
[Date "2022.07.30"]
[Round "2.59"]
[White "Rocha, Maximiliano"]
[Black "Drayton, Anthony"]
[Result "1-0"]
[ECO "C06"]
[WhiteElo "2117"]
[BlackElo "1928"]
[Annotator "TA"]
[PlyCount "83"]
[EventDate "2022.07.29"]
[EventType "team-tourn"]
[EventCountry "IND"]
[SourceTitle "playchess.com"]
[Source "ChessBase"]
[SourceQuality "1"]
[WhiteTeam "Nicaragua"]
[BlackTeam "Guyana"]
[WhiteTeamCountry "NCA"]
[BlackTeamCountry "GUY"]
[TimeControl "40/5400+30:1800+30"]

{[%evp 26,83,32,0,23,0,0,0,49,42,142,80,173,184,184,184,181,176,183,175,191,90,35,66,80,-58,83,91,96,31,137,-120,-116,-167,-27,-33,33,20,22,0,0,0,0,0,0,0,399,356,579,576,567,506,712,704,620,616,5057,1008,5202,5202]} 1. e4 {[%emt 0:00:11]} e6 {[%emt 0:00:35]} 2. d4 {[%emt 0:00:19]} d5 {[%emt 0:00:11]} 3. Nd2 {[%emt 0:00:36]} Nf6 {[%emt 0:00:25]} 4. Bd3 {[%emt 0:03:09]} c5 {[%emt 0:04:23]} 5. e5 {[%emt 0:00:16]} Nfd7 {[%emt 0:00:13]} 6. c3 {[%emt 0:00:09]} Nc6 {[%emt 0:00:43]} 7. Ndf3 {[%emt 0:00:21]} Qb6 {[%emt 0:00:32]} 8. Ne2 {[%emt 0:00:22]} cxd4 {[%emt 0:02:32]} 9. cxd4 {[%emt 0:00:14]} f5 {[%emt 0:05:01]} 10. exf6 {[%emt 0:02:58]} Nxf6 {[%emt 0:00:00]} 11. O-O {[%emt 0:00:20]} Bd6 {[%emt 0:00:00]} 12. a3 {[%emt 0:06:32]} O-O {[%emt 0:00:00]} 13. Nc3 {[%emt 0:05:48]} Bd7 {[%emt 0:05:54]} 14. Bg5 {[%emt 0:08:23]} Rac8 {[%emt 0:01:57] [#] C06: French Tarrasch: 3...Nf6 4 e5 Nfd7 5 Bd3 main lines.} (14... Qxb2 $2 15. Na4 Qxa1 16. Qxa1 $18) 15. h3 $146 {[%emt 0:04:36]} ({Predecessor:} 15. Na4 Qd8 16. Rc1 Qe8 17. Nc5 Bxc5 18. Bxf6 Rxf6 19. Rxc5 b6 20. Rc3 Ne7 21. Ne5 Bb5 22. Rxc8 Nxc8 23. Bxb5 Qxb5 {1-0 (30) Malan,L (1733)-Mordetzki,A (1542) Montevideo 2018}) 15... Bb8 {[%emt 0:01:09]} (15... Qxb2 $2 16. Na4 Qxa1 17. Qxa1 $18) 16. Re1 {[%emt 0:02:11]} a6 {[%emt 0:02:27]} (16... h6 $11 {is superior.} 17. Be3 Na5) 17. Rc1 $14 {[%emt 0:16:18]} Qxb2 {[%emt 0:10:16]} ({Black should try} 17... h6 $14 18. Na4 Qd8) 18. Bxf6 {[%emt 0:00:14]} (18. Na4 $142 $1 {[%cal Ra4b2]} Qxa3 19. Nc5) 18... Rxf6 {[%emt 0:00:09]} (18... gxf6 $16 19. Na4 Qxa3) 19. Na4 $1 $18 {[%emt 0:00:10]} Qxa3 {[%emt 0:01:16][%cal Of6f3] White must now prevent ...Rxf3!} 20. Nc5 {[%emt 0:00:16]} Be8 {[%emt 0:05:50][%cal Oc6d4]} 21. Ra1 $1 {[%emt 0:08:45]} Qc3 {[%emt 0:01:00]} 22. Re3 $1 {[%emt 0:02:50][%cal Od3h7]} Qb4 {[%emt 0:03:29] [#]} 23. Bxh7+ $1 {[%emt 0:04:03][%mdl 512]} Kxh7 $16 {[%emt 0:00:40]} 24. Rb3 $1 {[%emt 0:00:05]} Qc4 {[%emt 0:01:29]} 25. Rc1 {[%emt 0:00:07] [#]} (25. Ra4 $16 Qxa4 26. Nxa4) 25... Nxd4 {[%emt 0:04:48]} 26. Rxc4 {[%emt 0:12:12]} (26. Nxd4 $6 Rxc5 27. Rxc4 Rxc4 $11) 26... dxc4 {[%emt 0:00:20]} 27. Ng5+ {[%emt 0:04:45] Pair of Knights!} (27. Rxb7 $2 Nxf3+ 28. gxf3 Bc6 29. Rxb8 Rxb8 $19) 27... Kg8 {[%emt 0:00:32] [#]} (27... Kh6 $14 28. Rxb7 Be5) 28. Rc3 $1 {[%emt 0:02:22][%mdl 8192] Really sharp!} Rxc5 $17 {[%emt 0:01:18]} 29. Qxd4 {[%emt 0:07:23] [#]} (29. Ne4 $17 Rd5 30. Nxf6+ gxf6 31. Rxc4) 29... Rxg5 {[%emt 0:09:19]} ({Black should play} 29... Rb5 $1 $19 {[%cal Rb5b1] ( -> ...Rb1+)} 30. Qd1 Bh5) 30. Qd8 $11 {[%emt 0:00:33] [#]} Kf7 {[%emt 0:05:42]} 31. Qxb8 $14 {[%emt 0:01:29]} Bc6 {[%emt 0:00:14]} 32. g4 {[%emt 0:00:13]} Rd5 {[%emt 0:00:18]} 33. Rxc4 {[%emt 0:04:42]} Rd1+ {[%emt 0:00:11]} 34. Kh2 {[%emt 0:00:07]} g5 {[%emt 0:11:39] Against Rf4} 35. f4 {[%emt 0:01:52]} gxf4 $2 {[%emt 0:00:22][%mdl 8192]} (35... Rf1 $11) 36. Rxf4 $18 {[%emt 0:00:15]} Rd2+ $2 {[%emt 0:02:39]} (36... Rf1 {is a better defense.} 37. Rxf6+ (37. Qc7+ Kg6 $16) 37... Rxf6 38. Qc7+ Kg6) 37. Kg3 {[%emt 0:00:02] aiming for Rxf6+. White is clearly winning.} Rd3+ {[%emt 0:00:29]} 38. Kh4 {[%emt 0:00:09] Rxf6+ is the strong threat.} Rxf4 {[%emt 0:05:04]} 39. Qxf4+ {[%emt 0:00:03]} Ke7 {[%emt 0:03:19]} 40. g5 {[%emt 0:00:26]} Bg2 {[%emt 0:04:53]} 41. Qf6+ {[%emt 0:30:15]} (41. g6 $142 Rxh3+ 42. Kg5) 41... Kd6 {[%emt 0:30:37]} 42. Qd8+ {[%emt 0:00:08][%mdl 64] Skewer.  Weighted Error Value: White=0.28 (precise) /Black=0.80} 1-0

[Event "44th Chess Olympiad Open 2022"]
[Site "Chennai"]
[Date "2022.07.30"]
[Round "2.59"]
[White "Espinoza Solano, Jose Nahum"]
[Black "Lee, Ethan"]
[Result "1-0"]
[ECO "B15"]
[WhiteElo "2093"]
[BlackElo "1629"]
[Annotator "TA"]
[PlyCount "85"]
[EventDate "2022.07.29"]
[EventType "team-tourn"]
[EventCountry "IND"]
[SourceTitle "playchess.com"]
[Source "ChessBase"]
[SourceQuality "1"]
[WhiteTeam "Nicaragua"]
[BlackTeam "SGP"]
[WhiteTeamCountry "NCA"]
[TimeControl "40/5400+30:1800+30"]

{[%evp 9,85,45,52,53,66,39,54,45,83,91,100,94,97,88,91,82,71,71,75,77,124,114,120,116,159,162,191,144,171,173,299,168,325,158,157,162,214,147,190,190,205,197,207,174,189,187,440,142,116,121,150,127,610,592,599,575,841,540,540,527,683,663,918,861,5393,5293,2917,2628,6203,5839,29978,29976,29983,29983,29983,29984,29984,29985]} 1. e4 {[%emt 0:00:03][%cal Be2e4,Be4e5][%mdl 32]} c6 {[%emt 0:00:02]} 2. d4 {[%emt 0:00:19]} g6 {[%emt 0:00:08]} 3. Nc3 {[%emt 0:02:33]} d5 {[%emt 0:00:13]} 4. e5 {[%emt 0:00:52]} Bg7 {[%emt 0:00:55]} 5. f4 {[%emt 0:00:30]} f6 {[%emt 0:03:10]} 6. Nf3 {[%emt 0:00:28] B15: Caro-Kann: 3 Nc3: 3...g6 and 3...dxe4 4 Nxe4 Nf6 5 Nxf6+ exf6.} Bg4 {[%emt 0:02:12]} 7. Be2 {[%emt 0:00:53]} Bxf3 {[%emt 0:00:54]} 8. Bxf3 {[%emt 0:00:06] [#] White is slightly better.} fxe5 $146 {[%emt 0:05:40]} ({Predecessor:} 8... Nh6 9. O-O O-O 10. Kh1 Nd7 11. Ne2 Nb6 12. Qe1 Qc7 13. Ng3 fxe5 14. fxe5 e6 15. Bxh6 Bxh6 {0-1 (61) Lagarejos Gonzalez,E (1907)-Garcia Almeida,A (1703) Spain 2020}) 9. fxe5 {[%emt 0:00:22] Black must now prevent Bg4.} Nh6 {[%emt 0:05:31]} 10. Bg5 {[%emt 0:02:43]} Nf7 {[%emt 0:09:33]} 11. Be3 {[%emt 0:00:48] White is more active.} e6 {[%emt 0:00:49]} 12. Bg4 {[%emt 0:01:33]} Qe7 {[%emt 0:00:40]} 13. O-O {[%emt 0:00:42]} O-O {[%emt 0:01:09][%cal Oc6c5]} 14. Ne2 {[%emt 0:00:57]} Na6 {[%emt 0:06:48]} (14... Nh6 $142 15. Rxf8+ Bxf8) 15. Qd2 $16 {[%emt 0:02:23]} c5 {[%emt 0:02:31]} 16. c3 {[%emt 0:02:53]} cxd4 {[%emt 0:08:31]} 17. cxd4 {[%emt 0:00:21]} ({And not} 17. Nxd4 Nc5 $17) 17... Rac8 {[%emt 0:13:44]} 18. Rac1 {[%emt 0:02:00]} (18. Nf4 $18 Rc6 19. Nd3) 18... Qd7 {[%emt 0:02:39]} 19. Nf4 {[%emt 0:02:02]} Nc7 {[%emt 0:06:06] [#]} (19... Rxc1 $142 20. Rxc1 (20. Qxc1 Nc7 $16) 20... Nd8) 20. Rc2 {[%emt 0:03:17]} (20. Rxc7 $142 $1 {[%mdl 512]} Rxc7 21. Bxe6) 20... Bh6 $2 {[%emt 0:05:06] [#]} (20... Nd8 {was called for.} 21. Rfc1 Bh6 22. Nxd5 Nxd5 23. Bxh6 Rxc2 24. Qxc2 (24. Rxc2 Re8 $16) 24... Re8) 21. Rfc1 {[%emt 0:02:13]} (21. Rxc7 $1 $18 {[%mdl 512]} Qxc7 22. Nxe6 Bxe3+ 23. Qxe3) 21... Bxf4 {[%emt 0:08:06]} 22. Bxf4 {[%emt 0:00:19][%cal Be3f4,Bf4h6,Bh6g5][%mdl 32]} Nb5 {[%emt 0:02:22]} (22... Na6 {was worth a try.} 23. Rxc8 Rxc8) 23. Qb4 {[%emt 0:01:12] aiming for Rxc8.} Rxc2 {[%emt 0:04:08]} 24. Rxc2 {[%emt 0:00:10]} Nd8 {[%emt 0:03:19]} 25. Bh6 $40 {[%emt 0:03:04][%csl Gh6][%cal Rb4f8][%mdl 128] White is out for blood.} Rf7 {[%emt 0:00:20]} 26. Bg5 {[%emt 0:00:48] Hoping for Bxd8. This bishop pair is nice.} Nc7 {[%emt 0:01:04]} 27. h4 {[%emt 0:04:09]} Nc6 $2 {[%emt 0:01:54]} (27... h5) 28. Qd2 $2 {[%emt 0:02:33]} (28. Qxb7 $18 {is the precise move to win.} Nxd4 29. Qb8+ Qe8 30. Qxe8+ Nxe8 31. Rc8) 28... Nb5 {[%emt 0:00:33]} 29. Be3 {[%emt 0:00:20]} Qe7 {[%emt 0:03:48]} 30. g3 {[%emt 0:04:58]} Qb4 $2 {[%emt 0:01:35][%mdl 8192] [#] A mistake that costs the game.} (30... h5 $16) 31. Rxc6 $1 $18 {[%emt 0:00:36][%mdl 512]} Qxd2 {[%emt 0:00:22]} 32. Rc8+ {[%emt 0:00:02][%mdl 64] Zwischenzug} Rf8 {[%emt 0:01:52]} 33. Rxf8+ {[%emt 0:00:05]} Kxf8 {[%emt 0:00:10]} 34. Bxd2 {[%emt 0:00:04]} Nxd4 {[%emt 0:00:08]} 35. Be3 {[%emt 0:01:01]} Nf5 {[%emt 0:01:10]} 36. Bxf5 {[%emt 0:00:09]} exf5 {[%emt 0:00:32]} 37. Bxa7 {[%emt 0:00:09][%mdl 4096] Endgame KB-KP} Ke7 {[%emt 0:00:10]} 38. Kf2 {[%emt 0:00:07]} Ke6 {[%emt 0:00:12]} 39. Bd4 {[%emt 0:00:02] Intending a4 and mate.} h6 {[%emt 0:00:19]} 40. a4 {[%emt 0:00:16][%cal Ba2a4,Ba4a5][%mdl 32] White mates.} g5 {[%emt 0:00:35]} 41. hxg5 {[%emt 0:30:27]} hxg5 {[%emt 0:30:06]} 42. a5 {[%emt 0:00:10]} f4 {[%emt 0:00:13]} 43. gxf4 {[%emt 0:00:07] Weighted Error Value: White=0.45/Black=0.77} 1-0

[Event "44th Chess Olympiad Open 2022"]
[Site "Chennai"]
[Date "2022.07.30"]
[Round "2.59"]
[White "Khan, Taffin"]
[Black "Alfaro, William"]
[Result "0-1"]
[ECO "B31"]
[WhiteElo "2019"]
[BlackElo "2155"]
[Annotator "TA"]
[PlyCount "136"]
[EventDate "2022.07.29"]
[EventType "team-tourn"]
[EventCountry "IND"]
[SourceTitle "playchess.com"]
[Source "ChessBase"]
[SourceQuality "1"]
[WhiteTeam "Guyana"]
[BlackTeam "Nicaragua"]
[WhiteTeamCountry "GUY"]
[BlackTeamCountry "NCA"]
[TimeControl "40/5400+30:1800+30"]

{[%evp 21,136,24,18,-29,-24,-37,-18,-80,-74,-100,-83,-83,-74,-83,-74,-81,-77,-76,-72,-76,-72,-87,-78,-162,-164,-179,-179,-171,0,0,0,0,24,-109,-79,-98,-87,-112,0,-239,-224,-238,-222,-269,-269,-301,-275,-307,-304,-503,-478,-651,-661,-638,-620,-664,-660,-662,-662,-661,-627,-1105,-1091,-1016,-1011,-737,-739,-670,-646,-1446,-908,-2336,-2046,-2100,-1768,-1801,-1227,-1980,-1867,-806,-152,-152,-8,-8,-8,-8,-8,-8,-8,-11,-8,-3600,-2942,-29972,-29974,-29974,-29975,-29975,-29976,-29977,-29978,-29978,-29979,-29979,-29980,-29983,-29984,-29984,-29985,-29986,-29986,-29986,-29987,-29987,-29988,-29988,-29986]} 1. e4 {[%emt 0:00:05]} c5 {[%emt 0:00:50]} 2. Nf3 {[%emt 0:00:09]} Nc6 {[%emt 0:00:08]} 3. Bb5 {[%emt 0:00:12]} g6 {[%emt 0:00:47]} 4. O-O {[%emt 0:00:16]} Bg7 {[%emt 0:00:05]} 5. Re1 {[%emt 0:00:19]} Nf6 {[%emt 0:00:47]} 6. c3 {[%emt 0:02:34]} O-O {[%emt 0:00:06]} 7. d4 {[%emt 0:00:17]} d5 {[%emt 0:00:06]} 8. e5 {[%emt 0:03:48]} Ne4 {[%emt 0:00:07]} 9. Nbd2 {[%emt 0:00:19]} Nxd2 {[%emt 0:01:35]} 10. Bxd2 {[%emt 0:01:06]} Qb6 {[%emt 0:00:27]} 11. Bxc6 {[%emt 0:01:44]} bxc6 {[%emt 0:00:13]} 12. Qc1 {[%emt 0:00:29] B31: Sicilian: 2...Nc6 3 Bb5 g6.} (12. dxc5 $142 Qxb2 13. Qa4) 12... cxd4 $11 {[%emt 0:10:53]} 13. cxd4 {[%emt 0:08:31]} Bg4 {[%emt 0:00:06] [#]} 14. Qc5 $146 {[%emt 0:14:26]} (14. Qc3 $11 {remains equal.}) ({Predecessor:} 14. Qc3 Bxf3 15. gxf3 Rfc8 16. b4 e6 17. a3 Bf8 18. Rac1 Qb5 19. Rc2 a5 20. bxa5 c5 {½-½ (35) Zhang,D (2114)-Rakov,P (2175) Victoria 2009}) 14... Bxf3 {[%emt 0:06:13]} (14... Qxb2 $2 15. Reb1 Qxa1 16. Rxa1 $18) 15. gxf3 {[%emt 0:01:35]} Qxc5 {[%emt 0:12:43]} 16. dxc5 {[%emt 0:00:12]} a5 {[%emt 0:05:48]} 17. b3 {[%emt 0:03:47]} Rfb8 {[%emt 0:01:08]} 18. Rac1 {[%emt 0:00:37]} e6 {[%emt 0:00:51]} 19. Rc2 {[%emt 0:01:29]} Rb5 {[%emt 0:00:25]} 20. f4 {[%emt 0:01:21]} Kf8 {[%emt 0:05:52]} 21. Re3 {[%emt 0:07:41]} Rab8 {[%emt 0:04:12]} 22. a4 {[%emt 0:07:37]} (22. Rc1 $17) 22... Rxb3 $19 {[%emt 0:00:38]} 23. Rxb3 {[%emt 0:00:16]} Rxb3 {[%emt 0:00:01]} 24. Bxa5 {[%emt 0:00:01][%mdl 4096] Endgame KRB-KRB} Ra3 $2 {[%emt 0:12:56]} (24... Ke8 $19 {...Bh6 is the strong threat.} 25. Bd2 Kd7) 25. Rb2 $11 {[%emt 0:00:14]} Bh6 {[%emt 0:00:04]} 26. Rb4 {[%emt 0:13:56]} g5 {[%emt 0:01:40]} 27. fxg5 {[%emt 0:05:25]} ({Not} 27. Rb8+ Kg7 28. f5 exf5 $17) (27. Bd8 $11 {keeps the balance.} gxf4 28. Bf6) 27... Bxg5 $17 {[%emt 0:00:01]} 28. Kf1 {[%emt 0:15:29]} Be7 {[%emt 0:07:03]} 29. Bb6 {[%emt 0:00:09]} Rc3 {[%emt 0:00:21]} (29... Ra2 $17 30. a5 h5) 30. Ba5 $2 {[%emt 0:04:23]} (30. a5 $11 {and White stays safe.} Ra3 31. Ke2) 30... Rc1+ $19 {[%emt 0:02:25]} ({Inferior is} 30... Rxc5 31. Rb8+ Kg7 32. Bb6) 31. Ke2 {[%emt 0:00:53]} Bxc5 {[%emt 0:00:58]} 32. Rb8+ {[%emt 0:02:00]} Kg7 {[%emt 0:00:44]} 33. Bd2 {[%emt 0:02:57]} Rc2 {[%emt 0:00:32][%cal Oc5f2]} 34. Kd3 {[%emt 0:00:29]} Ra2 {[%emt 0:00:15]} 35. a5 $2 {[%emt 0:02:03]} (35. f4) 35... Bxf2 {[%emt 0:00:44]} 36. Bg5 {[%emt 0:00:15]} c5 {[%emt 0:01:45][%cal Bc6c5,Bc5c4][%mdl 32]} 37. Bf6+ {[%emt 0:01:03]} Kh6 {[%emt 0:00:05]} 38. Rg8 {[%emt 0:00:46]} c4+ {[%emt 0:00:38]} 39. Kc3 {[%emt 0:00:07]} Be1+ {[%emt 0:05:37]} 40. Kd4 {[%emt 0:00:10]} Bxa5 {[%emt 0:00:19]} 41. Ke3 {[%emt 0:30:39]} Bb6+ {[%emt 0:31:06]} 42. Kf3 {[%emt 0:00:34]} Rf2+ {[%emt 0:01:49]} 43. Kg3 {[%emt 0:00:09]} Rxf6 {[%emt 0:01:42]} 44. exf6 {[%emt 0:00:11] KR-KB} Bd4 {[%emt 0:00:02]} 45. Rg7 {[%emt 0:00:00]} Bxf6 {[%emt 0:00:00]} 46. Rxf7 {[%emt 0:00:00]} Kg6 {[%emt 0:00:00]} 47. Rd7 {[%emt 0:00:00]} c3 {[%emt 0:00:00]} 48. Kf3 {[%emt 0:00:00]} Be5 {[%emt 0:00:00]} 49. Ke3 {[%emt 0:00:00]} Bxh2 {[%emt 0:00:00]} 50. Kd3 {[%emt 0:00:00]} Be5 $2 {[%emt 0:00:00]} (50... h5 $19 {has better winning chances.} 51. Kxc3 h4) 51. Re7 $17 {[%emt 0:00:00]} h5 {[%emt 0:00:00]} (51... Kf5 $17 {Hoping for ...h5.} 52. Rxh7 d4 53. Rh5+ Kf6) 52. Rxe6+ $11 {[%emt 0:00:00]} Bf6 {[%emt 0:00:00]} 53. Re2 {[%emt 0:00:00]} h4 {[%emt 0:00:00][%cal Bh5h4,Bh4h3,Bh3h2][%mdl 32]} 54. Rg2+ {[%emt 0:00:00]} Kf5 {[%emt 0:00:00] Strongly threatening ...h3.} 55. Rf2+ {[%emt 0:00:00]} Ke6 {[%emt 0:00:00]} 56. Re2+ $2 {[%emt 0:00:00][%mdl 8192] [#] Now White is beyond hope.} (56. Rf1 $11) 56... Be5 $1 $19 {[%emt 0:00:00] ( -> ...h3)} 57. Rf2 {[%emt 0:00:00]} h3 {[%emt 0:00:00] Black mates.} 58. Rf3 {[%emt 0:00:00] [#]} h2 $1 {[%emt 0:00:00]} 59. Rf1 {[%emt 0:00:00]} Bg3 {[%emt 0:00:00]} 60. Rh1 {[%emt 0:00:00]} Ke5 {[%emt 0:00:00]} 61. Kxc3 {[%emt 0:00:00]} Ke4 {[%emt 0:00:00]} 62. Kd2 {[%emt 0:00:00]} d4 {[%emt 0:00:00][%cal Bd5d4,Bd4d3][%mdl 32]} 63. Ke2 {[%emt 0:00:00]} d3+ {[%emt 0:00:00]} 64. Kd2 {[%emt 0:00:00]} Bf4+ {[%emt 0:00:00]} 65. Kc3 {[%emt 0:00:00]} Ke3 {[%emt 0:00:00]} 66. Re1+ {[%emt 0:00:00]} Kf2 {[%emt 0:00:00]} 67. Rh1 {[%emt 0:00:00]} Ke2 {[%emt 0:00:00]} 68. Rb1 {[%emt 0:00:00]} Be3 {[%emt 0:16:33] Weighted Error Value: White=0.62/Black=0.13 (very precise)} 0-1